[Event "Israeli Team-ch 2023"]
[Site "Petah Tikva"]
[Date "2023.05.05"]
[Round "9.17"]
[White "Mordechai, Hanan"]
[Black "Levitan, Tal"]
[Result "1/2-1/2"]
[ECO "C45"]
[WhiteElo "2353"]
[BlackElo "2286"]
[Annotator "TA"]
[PlyCount "136"]
[EventDate "2023.01.13"]
[EventCountry "ISR"]
[SourceTitle "playchess.com"]
[Source "ChessBase"]
[SourceQuality "1"]
[TimeControl "40/5400+30:1800+30"]

{[%evp 21,136,24,25,29,27,27,27,22,25,23,29,24,24,18,33,33,45,36,41,16,21,22,34,37,48,24,41,42,59,50,61,64,86,57,70,70,134,67,71,28,33,0,37,0,33,34,33,39,33,35,36,47,54,46,58,25,117,25,25,25,176,176,176,176,176,176,183,176,183,183,183,183,183,183,183,183,183,183,183,183,183,183,183,183,183,183,183,183,183,183,183,183,183,183,183,183,183,0,0,0,0,0,0,0,0,-8,-8,-8,-8,-7,0,0,0,0,0,-8,-8]} 1. e4 {[%emt 0:00:03]} e5 {[%emt 0:00:05]} 2. Nf3 {[%emt 0:00:05]} Nc6 {[%emt 0:00:04]} 3. d4 {[%emt 1:31:52]} exd4 {[%emt 0:00:05]} 4. Nxd4 {[%emt 0:00:00]} Nf6 {[%emt 0:00:07][%cal Bg8f6,Bf6d5,Bd5b4][%mdl 32]} 5. Nxc6 {[%emt 0:00:00]} bxc6 {[%emt 0:00:05]} 6. e5 {[%emt 0:00:00]} Qe7 {[%emt 0:00:27]} 7. Qe2 {[%emt 0:00:00]} Nd5 {[%emt 0:00:04]} 8. c4 {[%emt 0:00:00]} Ba6 {[%emt 0:00:06]} 9. Nd2 {[%emt 0:00:00]} Nb4 {[%emt 0:04:19]} 10. Nf3 {[%emt 0:00:00]} c5 {[%emt 0:00:05]} 11. a3 {[%emt 0:00:00]} Nc6 {[%emt 0:00:05]} 12. Bd2 {[%emt 0:00:00] C45: Scotch Game.} d6 {[%emt 0:10:11]} 13. exd6 {[%emt 0:00:00][%mdl 64] Pin} Qxe2+ {[%emt 0:02:03]} 14. Bxe2 {[%emt 0:00:00] White has an edge.} Bxd6 {[%emt 0:00:06]} 15. Bc3 {[%emt 0:00:00]} O-O {[%emt 0:03:30]} 16. O-O-O {[%emt 0:00:00]} Rae8 {[%emt 0:36:06]} 17. Rhe1 {[%emt 0:00:00]} Re7 {[%emt 0:15:32]} 18. Bd3 {[%emt 0:00:00]} Rfe8 {[%emt 0:00:54]} 19. Rxe7 {[%emt 0:00:00]} Rxe7 {[%emt 0:00:14] [#]} 20. Re1 $146 {[%emt 0:00:00]} ({Predecessor:} 20. Kc2 f6 21. Rb1 Ne5 22. Nxe5 Bxe5 23. g3 Bd6 24. Bd2 Bb7 25. Be3 Bf3 26. b4 {1-0 Sklyarov,D (2424)-Sammalvuo,T (2469) FIN-chT 1314 2013 (5.2)}) 20... Rxe1+ {[%emt 0:01:26]} 21. Bxe1 {[%emt 0:00:00]} Ne5 {[%emt 0:09:29]} 22. Nxe5 {[%emt 0:00:00]} Bxe5 $14 {[%emt 0:00:02][%mdl 4096] Endgame KBB-KBB} 23. h3 {[%emt 0:00:00]} h5 {[%emt 0:03:00]} 24. f3 {[%emt 0:00:00]} g6 {[%emt 0:05:50]} 25. Bf2 {[%emt 0:00:00]} Bd6 {[%emt 0:00:05]} 26. Kc2 {[%emt 0:00:00]} Bc8 {[%emt 0:02:49]} 27. Kc3 {[%emt 0:00:00]} Bd7 {[%emt 0:02:23]} 28. b4 {[%emt 0:00:00]} Bc6 {[%emt 0:04:01]} ({Black should try} 28... cxb4+ $14 29. axb4 Be5+ 30. Kb3 a6) 29. bxc5 {[%emt 0:05:30]} ({Don't do} 29. Bxc5 Bxc5 30. bxc5 f5 $16) (29. Be4 $1 $16 {[%cal Re4c6]} Bxe4 30. fxe4) 29... Bf4 $1 {[%emt 0:00:04]} 30. Kb3 {[%emt 0:06:59]} Kf8 {[%emt 0:01:09]} 31. g3 {[%emt 0:00:39]} Bd2 {[%emt 0:00:37]} 32. f4 {[%emt 0:00:22]} f5 {[%emt 0:00:23]} 33. Kc2 {[%emt 0:00:27]} Ba5 {[%emt 0:00:04] [#]} 34. g4 $1 {[%emt 0:00:37]} hxg4 {[%emt 0:00:52]} 35. hxg4 {[%emt 0:00:01]} fxg4 {[%emt 0:00:11]} 36. Bxg6 {[%emt 0:00:08]} Bf3 $1 {[%emt 0:00:22]} 37. Kd3 {[%emt 0:00:28] f5 would be deadly.} c6 $1 {[%emt 0:00:17]} 38. Be4 {[%emt 0:01:37] And now Bxf3 would win.} Kf7 {[%emt 0:01:13]} (38... Kg7 $1 $11) 39. Bxf3 {[%emt 0:00:27]} (39. Bh4 $1 $16) 39... gxf3 $16 {[%emt 0:00:01] KB-KB} 40. Ke4 {[%emt 0:00:21]} Bd2 $2 {[%emt 0:01:06]} (40... Kf6 $1 $11 {and Black has nothing to worry.}) 41. Kxf3 $18 {[%emt 0:08:31]} Bc3 {[%emt 0:01:49]} 42. Ke4 {[%emt 0:00:23]} Ke6 {[%emt 0:00:30]} 43. Bd4 {[%emt 0:02:18]} Ba5 {[%emt 0:00:07]} 44. Be5 {[%emt 0:00:27]} a6 {[%emt 0:01:57]} 45. f5+ {[%emt 0:03:31]} Kf7 {[%emt 0:00:02]} 46. Kd3 {[%emt 0:03:00]} Be1 {[%emt 0:00:47]} 47. Bd4 {[%emt 0:00:57]} Ba5 {[%emt 0:00:29]} 48. Kc2 {[%emt 0:00:20]} Bc7 {[%emt 0:00:42]} 49. Kb3 {[%emt 0:00:16]} Ke7 {[%emt 0:00:44]} 50. Ka4 {[%emt 0:00:21]} Kf7 {[%emt 0:00:04]} 51. Bc3 {[%emt 0:03:21]} Ke7 {[%emt 0:00:27]} 52. Ba5 {[%emt 0:01:42]} Bf4 {[%emt 0:00:21]} 53. Bb6 {[%emt 0:00:17] Strongly threatening Ka5.} Bd2 {[%emt 0:00:05] [#]} 54. Bc7 $1 {[%emt 0:01:29]} Kf7 {[%emt 0:01:30]} 55. Be5 {[%emt 0:03:10]} Ke7 {[%emt 0:00:12]} 56. Kb3 {[%emt 0:03:52]} Ba5 {[%emt 0:00:07]} 57. Bc3 {[%emt 0:00:28]} Bc7 {[%emt 0:00:03]} 58. Kb4 {[%emt 0:00:48]} Kf7 {[%emt 0:00:38] [#]} 59. Be5 $2 {[%emt 0:02:54]} Bxe5 $11 {[%emt 0:08:12] KB-KP. The position is equal.} 60. Ka5 {[%emt 0:00:07]} Bd4 {[%emt 0:06:07]} 61. Kb6 {[%emt 0:00:48]} Kf6 {[%emt 0:00:03]} 62. Kxc6 {[%emt 0:00:08]} Kxf5 {[%emt 0:00:07] KB-K3P} 63. Kd5 {[%emt 0:01:19]} Be5 {[%emt 0:00:22]} 64. a4 {[%emt 0:00:46]} Bf4 {[%emt 0:01:19]} (64... a5 $5) 65. Kc6 {[%emt 0:00:22]} Be3 {[%emt 0:00:26]} 66. Kb6 {[%emt 0:01:47]} Ke5 {[%emt 0:00:23]} 67. Kxa6 {[%emt 0:00:10] Intending c6 and mate.} Bxc5 {[%emt 0:00:06]} 68. Kb5 {[%emt 0:00:14]} Kd6 {[%emt 0:17:19] White really could win this.   Weighted Error Value: White=0.14 (very precise) /Black=0.13 (very precise)} 1/2-1/2

[Event "Israeli Team-ch 2023"]
[Site "Petah Tikva"]
[Date "2023.05.05"]
[Round "9.18"]
[White "Linker, Mikhail"]
[Black "Karp, Ilya"]
[Result "0-1"]
[ECO "A26"]
[WhiteElo "2297"]
[BlackElo "2392"]
[Annotator "TA"]
[PlyCount "78"]
[EventDate "2023.01.13"]
[EventCountry "ISR"]
[SourceTitle "playchess.com"]
[Source "ChessBase"]
[SourceQuality "1"]
[TimeControl "40/5400+30:1800+30"]

{[%evp 16,78,35,19,14,12,8,10,6,-10,9,-24,-20,-23,-10,-11,51,54,54,-13,41,45,45,23,25,6,59,69,58,70,64,64,33,0,0,0,0,0,0,0,114,115,163,159,177,-4,-2,-565,-568,-520,-556,-527,-513,-523,-479,-581,-539,-518,-420,-916,-898,-918,-904,-29975,-29977]} 1. c4 {[%emt 0:00:10]} Nf6 {[%emt 1:31:00]} 2. g3 {[%emt 0:00:39]} g6 {[%emt 0:00:00]} 3. Bg2 {[%emt 0:00:23]} Bg7 {[%emt 0:00:00]} 4. Nc3 {[%emt 0:03:19]} O-O {[%emt 0:00:00]} 5. e4 {[%emt 0:01:15]} d6 {[%emt 0:00:00]} 6. Nge2 {[%emt 0:01:08]} e5 {[%emt 0:00:00]} 7. O-O {[%emt 0:01:26]} Nc6 {[%emt 0:00:00]} 8. d3 {[%emt 0:03:54]} a6 {[%emt 0:00:00] 8...Nd7 is setting a new trend.} 9. h3 {[%emt 0:05:28]} Nd4 {[%emt 0:00:00] A26: English Opening vs King's Indian with ...Nc6 and d3.} 10. Nxd4 {[%emt 0:06:48]} exd4 {[%emt 0:00:00]} 11. Ne2 {[%emt 0:00:04]} Nd7 $1 {[%emt 0:00:00] [#] The position is equal.} 12. g4 $146 {[%emt 0:19:27]} ({Predecessor:} 12. Rb1 Rb8 13. b3 b5 14. Bb2 c5 15. Qc2 a5 16. Kh2 Ne5 17. f4 Nc6 18. a3 {0-1 Makhmutov,R (2437)-Chigaev,M (2559) RUS-chT 24th 2017 (6.1)}) 12... Rb8 {[%emt 0:00:00]} 13. f4 {[%emt 0:52:59]} b5 {[%emt 0:00:00]} 14. b3 {[%emt 0:00:00]} bxc4 {[%emt 0:00:00]} 15. bxc4 {[%emt 0:00:00]} f5 {[%emt 0:00:00]} (15... Qh4 $11) 16. exf5 $14 {[%emt 0:00:00]} gxf5 {[%emt 0:00:00]} 17. Ng3 {[%emt 0:00:00]} ({White should try} 17. g5 $14) 17... Nc5 {[%emt 0:00:00]} (17... fxg4 $1 $11 18. hxg4 (18. Qxg4 Kh8 $11) 18... Qh4) 18. g5 {[%emt 0:00:00]} Re8 {[%emt 0:00:00]} 19. Bd5+ {[%emt 0:00:00]} Kh8 {[%emt 0:00:00]} 20. Qf3 {[%emt 0:00:00]} Re7 {[%emt 0:00:00]} ({Better is} 20... Bd7 $11) 21. Nh5 {[%emt 0:00:00]} Qf8 {[%emt 0:00:00]} 22. Bd2 {[%emt 0:00:00]} Rb2 {[%emt 0:00:00]} 23. Rf2 {[%emt 0:00:00]} Bd7 {[%emt 0:00:00][%cal Oc7c6]} 24. Rd1 {[%emt 0:00:00]} Ba4 {[%emt 0:00:00]} 25. Rdf1 {[%emt 0:00:00]} Rxa2 {[%emt 0:00:00]} 26. Nxg7 {[%emt 0:00:00]} Qxg7 {[%emt 0:00:00]} 27. Rb1 {[%emt 0:00:00]} Qf8 {[%emt 0:00:00] [#]} (27... Ra3 $11) 28. Bb4 $1 $16 {[%emt 0:01:03] A strong pair of Bishops.} ({Inferior is} 28. Bc3 dxc3 29. Rxa2 c2 $15) 28... Bc2 {[%emt 0:03:03]} (28... Rxf2 $16 {keeps fighting.} 29. Qxf2 Qg7) 29. Bxc5 $18 {[%emt 0:02:52]} dxc5 {[%emt 0:00:04] [#]} 30. Rb7 {[%emt 0:01:03]} (30. Rc1 $1 $18 {[%cal Rc1c2]}) 30... Re1+ $11 {[%emt 0:04:11]} 31. Kh2 $2 {[%emt 0:00:03][%mdl 8192] White does not recover from this.} (31. Rf1 $1 $11 Raa1 32. Rxe1 Rxe1+ 33. Kg2) 31... Bd1 $19 {[%emt 0:00:48]} 32. Rxa2 {[%emt 0:02:51]} Bxf3 {[%emt 0:00:02]} 33. Bxf3 {[%emt 0:00:40]} Qd6 {[%emt 0:01:28]} 34. Kg3 {[%emt 0:00:35]} Re3 {[%emt 0:00:25][%cal Oe3f3] ...Rxf3+! would be deadly.} 35. Rb8+ {[%emt 0:00:58]} Kg7 {[%emt 0:00:02]} 36. h4 {[%emt 0:00:31]} h5 {[%emt 0:01:30] aiming for ...a5.} 37. gxh6+ {[%emt 0:00:04]} (37. Re2 $142 a5 38. Rd2) 37... Kh7 {[%emt 0:00:54]} 38. h5 {[%emt 0:01:06]} Qxh6 {[%emt 0:01:15]} 39. Rg2 {[%emt 0:00:18]} Qxh5 {[%emt 0:00:44] Weighted Error Value: White=0.69/Black=0.25 (precise)} 0-1

[Event "Israeli Team-ch 2023"]
[Site "Petah Tikva"]
[Date "2023.05.05"]
[Round "9.20"]
[White "Tifferet, Shaked"]
[Black "Zanan, Evgeny"]
[Result "1-0"]
[ECO "C84"]
[WhiteElo "2226"]
[BlackElo "2483"]
[Annotator "TA"]
[PlyCount "73"]
[EventDate "2023.01.13"]
[EventCountry "ISR"]
[SourceTitle "playchess.com"]
[Source "ChessBase"]
[SourceQuality "1"]
[TimeControl "40/5400+30:1800+30"]

{[%evp 12,73,33,7,14,16,13,-14,-6,-8,-3,-5,-10,-13,-10,-9,-10,-8,-9,-19,26,9,14,-7,0,-25,22,10,33,8,13,7,14,8,46,54,48,44,68,68,64,66,59,60,72,74,76,72,62,74,180,8,183,183,196,47,180,201,29984,29985,29988,29989,29992,29993]} 1. e4 {[%emt 0:00:03]} e5 {[%emt 0:02:54]} 2. Nf3 {[%emt 0:00:16]} Nc6 {[%emt 0:00:06]} 3. Bb5 {[%emt 0:00:12]} a6 {[%emt 0:00:09]} 4. Ba4 {[%emt 0:00:07]} Nf6 {[%emt 0:00:05]} 5. O-O {[%emt 0:00:07]} Be7 {[%emt 0:00:25]} 6. d3 {[%emt 0:00:12]} d6 {[%emt 0:00:36]} 7. c4 {[%emt 0:07:26]} O-O {[%emt 0:06:08] C84: Closed Ruy Lopez: Unusual White 6th moves.} 8. h3 {[%emt 0:02:27]} Nd4 {[%emt 0:12:41] [#]} 9. b4 $146 {[%emt 0:18:29]} ({Predecessor:} 9. Nxd4 exd4 10. Nd2 Nd7 11. Nf3 c5 12. Bf4 Qc7 13. b4 b6 14. Rb1 Ne5 15. Bg3 Nxf3+ 16. Qxf3 {½-½ Durarbayli,V (2615)-Mamedov,N (2604) AZE-ch Prelim 76th 2022 (4)}) 9... Nxf3+ {[%emt 0:13:48] The position is equal.} 10. Qxf3 {[%emt 0:00:03]} c6 {[%emt 0:01:04]} 11. Bb2 {[%emt 0:03:50]} Be6 {[%emt 0:04:19]} 12. a3 {[%emt 0:09:07]} b5 {[%emt 0:02:02]} 13. Bb3 {[%emt 0:06:51]} Nd7 {[%emt 0:15:14][%cal Bf6d7,Bd7b6,Bb6a4][%mdl 32]} 14. Nd2 {[%emt 0:00:31]} Bg5 {[%emt 0:02:37]} 15. Qe2 {[%emt 0:01:15]} Nb6 {[%emt 0:09:20]} 16. Nf3 {[%emt 0:00:44]} Be7 {[%emt 0:00:41]} 17. Qc2 {[%emt 0:01:59]} Qb8 {[%emt 0:06:38]} 18. Rac1 {[%emt 0:05:37]} Rc8 {[%emt 0:01:36]} (18... bxc4 $142 19. dxc4 Nd7) 19. c5 $11 {[%emt 0:03:52]} Bxb3 {[%emt 0:00:59]} 20. Qxb3 {[%emt 0:00:04]} Na4 {[%emt 0:00:36]} 21. cxd6 {[%emt 0:06:52]} Bxd6 {[%emt 0:01:25]} 22. Ba1 {[%emt 0:02:15]} Nb6 {[%emt 0:05:36]} 23. d4 {[%emt 0:06:59][%cal Rd4e5]} Nc4 {[%emt 0:06:35]} 24. dxe5 {[%emt 0:00:13]} Nxe5 {[%emt 0:02:07]} 25. Nd4 {[%emt 0:00:54]} Bf8 {[%emt 0:00:46]} 26. f4 {[%emt 0:02:10] White is more active.} Nc4 {[%emt 0:00:55]} 27. Nf5 $36 {[%emt 0:00:08][%mdl 2048] White is more active.} Qb6+ {[%emt 0:01:46]} (27... Nd2 {gets mated.} 28. Nh6+ Kh8 29. Nxf7+ (29. Qxf7 Qa7+ 30. Rf2 Qxf7 $18) 29... Kg8 30. Nh6+ Kh8 31. Qg8#) 28. Kh1 {[%emt 0:01:15][%cal Of5h6] Nh6+! is the strong threat.} c5 {[%emt 0:00:26]} (28... Nd2 {is a self mate.} 29. Nh6+ Kh8 30. Nxf7+ Kg8 31. Nh6+ Kh8 32. Qg8#) 29. bxc5 {[%emt 0:01:18]} Qe6 {[%emt 0:00:36]} 30. Qg3 {[%emt 0:07:34][%cal Ra1g7]} f6 {[%emt 0:01:19]} (30... Qg6 $16 {is a better defense.}) 31. Nh6+ $1 $18 {[%emt 0:02:39]} Kh8 {[%emt 0:00:04]} 32. f5 {[%emt 0:00:21][%cal Bf4f5,Bf5f6][%mdl 32]} Qe7 {[%emt 0:01:20] [#]} 33. Ng4 {[%emt 0:04:20]} (33. e5 $1 $18 {[%cal Re5f6] exf6 would be deadly.} Qc7 34. Ng4) 33... Qc7 {[%emt 0:01:30] [#]} ({Black should try} 33... Rxc5 $14 34. e5 fxe5) 34. e5 $1 {[%emt 0:01:12]} ({Not} 34. Qxc7 Rxc7 35. e5 h5 $15) 34... Bxc5 $2 {[%emt 0:00:13] [#]} (34... Qxc5 $2 35. exf6 Ra7 36. fxg7+ Rxg7 37. Bxg7+ Bxg7 38. f6 $18) (34... Re8 $18 35. Rf3 Nxe5 36. Nxe5 fxe5) 35. exf6 $1 {[%emt 0:00:32] White mates.} Bf8 {[%emt 0:00:43]} (35... Ra7 36. fxg7+) 36. fxg7+ {[%emt 0:00:20]} Bxg7 {[%emt 0:00:01] [#]} 37. f6 $1 {[%emt 0:00:12] An entertaining game by Tifferet.   Weighted Error Value: White=0.08 (flawless) /Black=0.33} 1-0

[Event "Israeli Team-ch 2023"]
[Site "Petah Tikva"]
[Date "2023.05.05"]
[Round "9.21"]
[White "Oratovsky, Michael"]
[Black "Steiner-Prozhanski, Giora"]
[Result "1-0"]
[ECO "C00"]
[WhiteElo "2422"]
[BlackElo "2254"]
[Annotator "TA"]
[PlyCount "81"]
[EventDate "2023.01.13"]
[EventCountry "ISR"]
[SourceTitle "playchess.com"]
[Source "ChessBase"]
[SourceQuality "1"]
[TimeControl "40/5400+30:1800+30"]

{[%evp 18,81,0,0,39,36,39,34,45,10,12,17,43,50,42,42,37,47,46,16,13,20,34,44,36,33,34,35,29,38,35,33,36,27,34,37,41,31,92,90,105,114,109,109,120,0,0,0,0,0,6,-273,-259,-254,2,2,2,2,2,2,2,6,883,834,566,543]} 1. e4 {[%emt 0:00:06]} c5 {[%emt 0:00:03]} 2. Nf3 {[%emt 0:00:07]} e6 {[%emt 0:00:04]} 3. g3 {[%emt 0:00:22]} Nc6 {[%emt 0:00:04]} 4. Bg2 {[%emt 0:00:06]} Nf6 {[%emt 0:00:04]} 5. d3 {[%emt 0:00:48]} d5 {[%emt 0:01:00]} 6. Nbd2 {[%emt 0:01:02]} Be7 {[%emt 0:00:16]} 7. O-O {[%emt 0:00:09]} O-O {[%emt 0:00:08]} 8. Re1 {[%emt 0:00:14]} b5 {[%emt 0:00:43]} 9. exd5 {[%emt 1:32:06]} exd5 {[%emt 0:05:11]} 10. d4 {[%emt 0:00:00]} Bf5 {[%emt 0:13:07] C00: French: Unusual White 2nd moves.} 11. dxc5 {[%emt 0:00:00]} Bxc5 {[%emt 0:00:17] aiming for ...Qb6.} 12. Nb3 {[%emt 0:00:00]} Bb6 {[%emt 0:01:32] White is slightly better.} 13. Be3 {[%emt 0:00:00]} Rc8 {[%emt 0:03:07] [#]} 14. c3 $146 {[%emt 0:02:30]} ({Predecessor:} 14. Bxb6 Qxb6 15. Nfd4 Be4 16. Nxc6 Rxc6 17. c3 b4 18. cxb4 Qxb4 19. Qd4 Qb8 20. Rec1 {0-1 Saric,I (2555)-Saraci,N (2487) Cetinje June GM 01 2022 (1)}) 14... Bxe3 {[%emt 0:24:08]} 15. Rxe3 {[%emt 0:00:00]} b4 {[%emt 0:09:46]} 16. Nbd4 {[%emt 0:00:00]} Nxd4 {[%emt 0:00:15]} 17. Nxd4 {[%emt 0:00:00]} Bg4 {[%emt 0:00:29]} 18. Qb3 {[%emt 0:00:00]} (18. f3 $5 {[%cal Rf3g4]} Bd7 19. cxb4 $14) 18... bxc3 {[%emt 0:00:32]} 19. Rxc3 {[%emt 0:00:00]} Rb8 {[%emt 0:09:15]} 20. Qa3 {[%emt 0:00:00] Strongly threatening Nc6.} Qb6 {[%emt 0:08:10]} 21. Nc6 {[%emt 0:00:00]} Qxb2 {[%emt 0:00:12]} 22. Nxb8 {[%emt 0:00:00]} Qxa1+ {[%emt 0:00:10]} 23. Rc1 {[%emt 0:00:00]} Qe5 {[%emt 0:11:47]} 24. Nc6 {[%emt 0:00:00]} Qe8 {[%emt 0:00:07]} 25. Ne7+ {[%emt 0:00:00]} Kh8 {[%emt 0:00:09]} 26. Nxd5 {[%emt 0:01:01]} Nxd5 {[%emt 0:02:29]} 27. Bxd5 {[%emt 0:00:02]} Qb8 {[%emt 0:01:12]} (27... Qd8 $14) 28. Qe7 $16 {[%emt 0:05:18]} Kg8 {[%emt 0:06:08]} 29. Kg2 {[%emt 0:00:35]} Qb5 {[%emt 0:01:11]} 30. Rc5 {[%emt 0:00:30]} Qb1 {[%emt 0:02:14][%cal Og4e6]} 31. Rc7 {[%emt 0:00:30] Active counter play!} ({White should try} 31. Qe5 $16) 31... Qf5 $11 {[%emt 0:00:18]} 32. Qe4 {[%emt 0:00:30] Threatens to win with Qxf5. The board is on fire.} Bh3+ {[%emt 0:00:11]} 33. Kg1 {[%emt 0:00:06] Hoping for Qxf5.} Qf6 {[%emt 0:00:56]} 34. Qe1 {[%emt 0:00:34][%mdl 8192] Prevents Qa1.} (34. Rxa7 $2 Qa1+) (34. Qf4 $11) 34... Qd6 $1 $19 {[%emt 0:00:54][%csl LRc7,LRd5][%cal Od6d5]} 35. Qa5 {[%emt 0:00:31] [#]} Rd8 $2 {[%emt 0:00:55] [#]} (35... Re8 $1 $19 {[%cal Od6d5] ( -> ...Qxd5!)} 36. Rc1 (36. Rxf7 {gets mated.} Qxd5 {[%mdl 64] Double Attack}) (36. Bxf7+ $2 {loses.} Kf8 $19) 36... Re5) 36. Rxa7 $1 $11 {[%emt 0:00:02]} g6 $1 $132 {[%emt 0:00:14][%mdl 2048] Black has counterplay} 37. Ra8 $1 {[%emt 0:01:01]} (37. Bxf7+ $2 {perishes.} Kf8 38. Qe1 Qd1 $19) 37... Rxa8 {[%emt 0:00:19]} 38. Qxa8+ {[%emt 0:00:07]} Kg7 $1 {[%emt 0:00:04]} 39. Qb7 {[%emt 0:01:11]} Qe5 $2 {[%emt 0:01:15][%mdl 8192]} (39... Qf6 $11 40. Qb1 Qc3) 40. Qxf7+ $18 {[%emt 0:00:08]} (40. Bxf7 $2 Qe1#) 40... Kh6 {[%emt 0:00:04]} 41. Qf4+ {[%emt 0:30:47] An entertaining game by Oratovsky.   Weighted Error Value: White=0.26 (precise) /Black=0.15 (very precise)} 1-0

[Event "Israeli Team-ch 2023"]
[Site "Petah Tikva"]
[Date "2023.05.05"]
[Round "9.22"]
[White "Poleg, Dan"]
[Black "Bronstein, Or"]
[Result "0-1"]
[ECO "D02"]
[WhiteElo "2193"]
[BlackElo "2447"]
[Annotator "TA"]
[PlyCount "80"]
[EventDate "2023.01.13"]
[EventCountry "ISR"]
[SourceTitle "playchess.com"]
[Source "ChessBase"]
[SourceQuality "1"]
[TimeControl "40/5400+30:1800+30"]

{[%evp 9,80,14,28,10,16,-15,-16,-11,-18,-17,-8,-26,-18,-23,0,-43,0,-9,0,0,0,-22,-15,-51,-58,-56,-57,-62,-56,-66,-59,-57,-63,-148,-132,-116,-104,-98,-100,-97,-39,-43,-43,-45,0,-31,0,-34,0,0,0,0,0,9,10,10,6,0,42,39,44,12,66,0,0,-305,-293,-862,-803,-844,-804,-764,-760]} 1. d4 {[%emt 0:00:02]} Nf6 {[%emt 0:01:13]} 2. Nf3 {[%emt 0:01:10]} g6 {[%emt 0:02:43]} 3. Nbd2 {[%emt 0:00:10]} d5 {[%emt 0:02:28]} 4. e3 {[%emt 0:00:08]} Bg7 {[%emt 0:01:42]} 5. b4 {[%cal Bb2b4,Bb4b5][%mdl 32]} a5 {[%emt 0:01:31]} 6. b5 {[%emt 0:02:18] D02: 1 d4 d5 2 Nf3 sidelines, including 2...Nf6 3 g3 and 2...Nf6 3 Bf4.} c5 {[%emt 0:00:30]} 7. c4 {[%emt 0:00:10]} cxd4 {[%emt 0:09:21]} 8. Nxd4 {[%emt 0:01:35] The position is equal.} O-O {[%emt 0:12:56]} 9. Bb2 {[%emt 0:02:29] [#]} Bg4 $146 {[%emt 0:15:35]} ({Predecessor:} 9... a4 10. a3 Qa5 11. Rc1 Rd8 12. Bc3 Qc7 13. cxd5 Nxd5 14. Bb2 Qa5 15. Bc4 Nb6 {0-1 Mitrabha,G (2445)-Antipov,M (2609) FIDE World Uni Blitz-A 1st 2021 (10.2)}) 10. N4f3 {[%emt 0:17:32]} Nbd7 {[%emt 0:01:52]} 11. Be2 {[%emt 0:06:05]} Nc5 {[%emt 0:03:50]} 12. Rc1 {[%emt 0:09:43]} Rc8 {[%emt 0:03:49]} (12... dxc4 {simplifies} 13. Bxf6 Bxf3 14. gxf3 Bxf6 15. Nxc4 Qxd1+ 16. Rxd1 Na4) 13. O-O {[%emt 0:01:45]} Nfe4 {[%emt 0:08:32]} 14. Bxg7 {[%emt 0:01:28]} Kxg7 {[%emt 0:00:01]} 15. cxd5 {[%emt 0:00:23]} Qxd5 {[%emt 0:00:34]} 16. Nc4 {[%emt 0:00:39]} (16. Rc2 {with more complications.} Nd6 17. Qa1+ f6 18. Rd1) 16... Qxd1 {[%emt 0:03:40]} 17. Rfxd1 {[%emt 0:00:15]} Na4 $1 {[%emt 0:00:58] Wards off Nb6} 18. Bf1 {[%emt 0:19:38]} Nec3 {[%emt 0:05:04]} 19. Re1 {[%emt 0:00:37]} Bxf3 {[%emt 0:09:21]} (19... Nxb5 20. Nce5 Bxf3 21. Bxb5) 20. gxf3 {[%emt 0:00:07]} b6 {[%emt 0:00:27]} 21. Ra1 {[%emt 0:03:51]} (21. Ne5 $15) 21... Rc5 {[%emt 0:01:06]} ({Not} 21... Nxb5 22. Nxb6 Nxb6 23. Bxb5 $15) 22. Nd2 {[%emt 0:07:36]} Rd8 {[%emt 0:01:54]} 23. Nb3 {[%emt 0:00:52]} Rg5+ {[%emt 0:04:25]} 24. Kh1 {[%emt 0:00:08]} e5 {[%emt 0:04:38] Black is much more active.} (24... Nc5 $17 25. Nd4 e5) 25. Rec1 $15 {[%emt 0:04:54]} Rf5 {[%emt 0:00:26]} 26. Kg2 {[%emt 0:01:21]} Rg5+ {[%emt 0:00:01]} (26... e4 $5 {[%cal Re4f3]} 27. f4 Nxb5 $15) 27. Kh1 {[%emt 0:00:04]} Rf5 {[%emt 0:00:04]} 28. Kg2 {[%emt 0:00:05]} g5 {[%emt 0:05:05]} 29. Rc2 {[%emt 0:00:57]} e4 {[%emt 0:00:27]} 30. fxe4 {[%emt 0:00:34]} Nxe4 {[%emt 0:00:02]} 31. Nd4 {[%emt 0:00:05]} Rf6 {[%emt 0:00:54]} 32. Rd1 {[%emt 0:06:04][%cal Od4f5] [#] Black must now prevent Nf5+!} Re8 {[%emt 0:00:01]} 33. Bd3 {[%emt 0:01:42]} Nac3 {[%emt 0:00:46]} 34. Rdc1 {[%emt 0:00:38]} Nd5 {[%emt 0:00:02]} 35. a3 {[%emt 0:03:14]} h5 {[%emt 0:01:11]} ({Black should try} 35... h6 $11) 36. Bc4 {[%emt 0:02:46]} ({White should play} 36. h3 $14) 36... Rd8 {[%emt 0:00:41]} 37. Rd1 $2 {[%emt 0:04:01][%mdl 8192] [#]} (37. Kg1 $11 {and White stays safe.}) 37... Nxf2 $1 $19 {[%emt 0:00:36][%mdl 64] Remove Defender. A dynamic duo of knights.} 38. Nf5+ $2 {[%emt 0:03:42]} (38. Re1 Nxe3+ {[%mdl 64] Discovered Attack} 39. Rxe3 Rxd4 40. Be2) 38... Rxf5 {[%emt 0:00:02] Black is clearly winning.} 39. Rxd5 {[%emt 0:00:08]} Rfxd5 {[%emt 0:00:34]} 40. Bxd5 {[%emt 0:00:08]} Ng4 {[%emt 0:00:10] Weighted Error Value: White=0.43/Black=0.12 (very precise)} 0-1